Workbook

Sheet Lavender 7
B1: =TODAY() -> 2024-11-09
B2: Lavender 7 - 2+1,3+1,3+1 Pent
B3: G. Floor | H3: Balcony | I3: Terace | J3: Corner | K3: Mountain V. | L3: Pool/ Landscape | M3: North | N3: South | O3: East | P3: West
B5: No: | C5: MODEL | D5: Brüt Alan | E5: Brüt Alan | F5: Fiyat | G5: Durum
B7: 1 | C7: 2+1 | D7: 58+6 | E7: 58 | G7: SOLD | H7: x | J7: x | M7: x | O7: x
B8: 2 | C8: 3+1 | D8: 104+6 | E8: 104 | F8: 110000 | H8: x | J8: x | N8: x | O8: x
B9: 3 | C9: 3+1 | D9: 104+6 | E9: 104 | F9: 110000 | G9: SOLD | H9: x | J9: x | N9: x | P9: x
B10: 4 | C10: 2+1 | D10: 58+6 | E10: 58 | F10: 74500 | G10: SOLD | H10: x | J10: x | M10: x | P10: x
B11: 1. Floor | H11: Balcony | I11: Terace | J11: Corner | K11: Mountain V. | L11: Pool/ Landscape | M11: North | N11: South | O11: East | P11: West
B13: No: | C13: MODEL | D13: Brüt Alan | E13: Brüt Alan | F13: Fiyat | G13: Durum
B15: 5 | C15: 2+1 | D15: 58+6 | E15: 58 | G15: DEPOSİT | H15: x | J15: x | M15: x | O15: x
B16: 6 | C16: 3+1 | D16: 104+6 | E16: 104 | F16: =F8+1000 -> 111000 | H16: x | J16: x | N16: x | O16: x
B17: 7 | C17: 3+1 | D17: 104+6 | E17: 104 | F17: 111000 | H17: x | J17: x | N17: x | P17: x
B18: 8 | C18: 2+1 | D18: 58+6 | E18: 58 | G18: SOLD | H18: x | J18: x | M18: x | P18: x
B19: 2. Floor | H19: Balcony | I19: Terace | J19: Corner | K19: Mountain V. | L19: Pool/ Landscape | M19: North | N19: South | O19: East | P19: West
B21: No: | C21: MODEL | D21: Brüt Alan | E21: Brüt Alan | F21: Fiyat | G21: Durum
B23: 9 | C23: 2+1 | D23: 58+6 | E23: 58 | G23: SOLD | H23: x | J23: x | M23: x | O23: x
B24: 10 | C24: 3+1 | D24: 104+6 | E24: 104 | F24: =F16+1000 -> 112000 | G24: RES.07.10.Z.N | H24: x | J24: x | N24: x | O24: x
B25: 11 | C25: 3+1 | D25: 104+6 | E25: 104 | F25: 112000 | H25: x | J25: x | N25: x | P25: x
B26: 12 | C26: 2+1 | D26: 58+6 | E26: 58 | F26: 76500 | G26: DEPOSİT | H26: x | J26: x | M26: x | P26: x
B27: 3. Floor | H27: Balcony | I27: Terace | J27: Corner | K27: Mountain V. | L27: Pool/ Landscape | M27: North | N27: South | O27: East | P27: West
B29: No: | C29: MODEL | D29: Brüt Alan | E29: Brüt Alan | F29: Fiyat | G29: Durum
B31: 13 | C31: 2+1 | D31: 58+6 | E31: 58 | G31: SOLD | H31: x | J31: x | M31: x | O31: x
B32: 14 | C32: 3+1 | D32: 104+6 | E32: 104 | F32: =F24+1000 -> 113000 | H32: x | J32: x | N32: x | O32: x
B33: 15 | C33: 3+1 | D33: 104+6 | E33: 104 | F33: 113000 | H33: x | J33: x | N33: x | P33: x
B34: 16 | C34: 2+1 | D34: 58+6 | E34: 58 | G34: SOLD | H34: x | J34: x | M34: x | P34: x
B35: 4. Floor | H35: Balcony | I35: Terace | J35: Corner | K35: Mountain V. | L35: Pool/ Landscape | M35: North | N35: South | O35: East | P35: West
B37: No: | C37: MODEL | D37: Brüt Alan | E37: Brüt Alan | F37: Fiyat | G37: Durum
B39: 17 | C39: 2+1 | D39: 58+6 | E39: 58 | G39: SOLD | H39: x | J39: x | M39: x | O39: x
B40: 18 | C40: 3+1 | D40: 104+6 | E40: 104 | F40: =F32+1000 -> 114000 | H40: x | J40: x | N40: x | O40: x
B41: 19 | C41: 3+1 | D41: 104+6 | E41: 104 | F41: 114000 | G41: DEPOSİT | H41: x | J41: x | N41: x | P41: x
B42: 20 | C42: 2+1 | D42: 58+6 | E42: 58 | G42: SOLD | H42: x | J42: x | M42: x | P42: x
B43: 5. Floor | H43: Balcony | I43: Terace | J43: Corner | K43: Mountain V. | L43: Pool/ Landscape | M43: North | N43: South | O43: East | P43: West
B45: No: | C45: MODEL | D45: Brüt Alan | E45: Brüt Alan | F45: Fiyat | G45: Durum
B47: 21 | C47: 2+1 Penthouse | D47: 93+61+29 | E47: 93 | F47: 137000 | H47: x | I47: x | J47: x | L47: x | M47: x | N47: x | O47: x
B48: 22 | C48: 2+1 Penthouse | D48: 93+61+29 | E48: 93 | F48: 137000 | H48: x | I48: x | J48: x | K48: x | M48: x | N48: x | P48: x

Sheet Daphne 3
A1: 5 | B1: =TODAY() -> 2024-11-09
B2: DAPHNE 3 - 1+1,2+1 Pent
B3: G. Floor | H3: Balcony | I3: Terace | J3: Corner | K3: Mountain V. | L3: Pool/ Landscape | M3: North | N3: South | O3: East | P3: West
B5: No: | C5: MODEL | D5: Brüt Alan | E5: Brüt Alan | F5: Fiyat | G5: Durum
B7: 1 | C7: 1+1 | D7: 50+11 | E7: 50 | G7: SOLD | H7: x | O7: x
B8: 2 | C8: 1+1 | D8: 58+11 | E8: 58 | G8: SOLD | H8: x | J8: x | N8: x | O8: x
B9: 3 | C9: 1+1 | D9: 58+6 | E9: 58 | F9: 74500 | G9: RES.09.11.A.K | H9: x | J9: x | N9: x | P9: x
B10: 4 | C10: 1+1 | D10: 54+6 | E10: 54 | F10: 73500 | H10: x | P10: x
B11: 5 | C11: 1+1 | D11: 54+6 | E11: 54 | G11: SOLD | H11: x | P11: x
B12: 6 | C12: 1+1 | D12: 58+6 | E12: 58 | F12: 74500 | G12: RES.30.09.A.D | H12: x | J12: x | M12: x | P12: x
B13: 7 | C13: 1+1 | D13: 58+11 | E13: 58 | G13: SOLD | H13: x | J13: x | M13: x | O13: x
B14: 8 | C14: 1+1 | D14: 50+11 | E14: 50 | G14: DEPOSİT | H14: x | O14: x
B15: 1. Floor | H15: Balcony | I15: Terace | J15: Corner | K15: Mountain V. | L15: Pool/ Landscape | M15: North | N15: South | O15: East | P15: West
B17: No: | C17: MODEL | D17: Brüt Alan | E17: Brüt Alan | F17: Fiyat | G17: Durum
B19: 9 | C19: 1+1 | D19: 50+11 | E19: 50 | H19: x | O19: x
B20: 10 | C20: 1+1 | D20: 58+11 | E20: 58 | G20: DEPOSİT | H20: x | J20: x | N20: x | O20: x
B21: 11 | C21: 1+1 | D21: 58+6 | E21: 58 | F21: 75500 | G21: SOLD | H21: x | J21: x | N21: x | P21: x
B22: 12 | C22: 1+1 | D22: 54+6 | E22: 54 | F22: 74500 | H22: x | P22: x
B23: 13 | C23: 1+1 | D23: 54+6 | E23: 54 | G23: SOLD | H23: x | P23: x
B24: 14 | C24: 1+1 | D24: 58+6 | E24: 58 | F24: 75500 | G24: deposit | H24: x | J24: x | M24: x | P24: x
B25: 15 | C25: 1+1 | D25: 58+11 | E25: 58 | F25: 77500 | G25: sold | H25: x | J25: x | L25: x | M25: x | O25: x
B26: 16 | C26: 1+1 | D26: 50+11 | E26: 50 | F26: 74500 | G26: SOLD | H26: x | L26: x | O26: x
B27: 2. Floor | H27: Balcony | I27: Terace | J27: Corner | K27: Mountain V. | L27: Pool/ Landscape | M27: North | N27: South | O27: East | P27: West
B29: No: | C29: MODEL | D29: Brüt Alan | E29: Brüt Alan | F29: Fiyat | G29: Durum
B31: 17 | C31: 1+1 | D31: 50+11 | E31: 50 | F31: 73500 | G31: SOLD | H31: x | O31: x
B32: 18 | C32: 1+1 | D32: 58+11 | E32: 58 | G32: SOLD | H32: x | J32: x | N32: x | O32: x
B33: 19 | C33: 1+1 | D33: 58+6 | E33: 58 | F33: 76500 | G33: RES.23.09.M.R | H33: x | J33: x | N33: x | P33: x
B34: 20 | C34: 1+1 | D34: 54+6 | E34: 54 | F34: 75500 | G34: res.13.09.H.A | H34: x | P34: x
B35: 21 | C35: 1+1 | D35: 54+6 | E35: 54 | F35: 75500 | G35: RES16.09.M.R | H35: x | P35: x
B36: 22 | C36: 1+1 | D36: 58+6 | E36: 58 | F36: 76500 | G36: DEPOSİT | H36: x | J36: x | M36: x | P36: x
B37: 23 | C37: 1+1 | D37: 58+11 | E37: 58 | G37: Sold | H37: x | J37: x | L37: x | M37: x | O37: x
B38: 24 | C38: 1+1 | D38: 50+11 | E38: 50 | F38: 75500 | G38: SOLD | H38: x | L38: x | O38: x
B39: 3. Floor | H39: Balcony | I39: Terace | J39: Corner | K39: Mountain V. | L39: Pool/ Landscape | M39: North | N39: South | O39: East | P39: West
B41: No: | C41: MODEL | D41: Brüt Alan | E41: Brüt Alan | F41: Fiyat | G41: Durum
B43: 25 | C43: 1+1 | D43: 50+11 | E43: 50 | F43: 74500 | G43: DEPOSİT | H43: x | O43: x
B44: 26 | C44: 1+1 | D44: 58+11 | E44: 58 | G44: Sold | H44: x | J44: x | N44: x | O44: x
B45: 27 | C45: 1+1 | D45: 58+6 | E45: 58 | F45: 77500 | H45: x | J45: x | N45: x | P45: x
B46: 28 | C46: 1+1 | D46: 54+6 | E46: 54 | F46: 76500 | H46: x | P46: x
B47: 29 | C47: 1+1 | D47: 54+6 | E47: 54 | F47: 76500 | H47: x | P47: x
B48: 30 | C48: 1+1 | D48: 58+6 | E48: 58 | F48: 77500 | H48: x | J48: x | M48: x | P48: x
B49: 31 | C49: 1+1 | D49: 58+11 | E49: 58 | G49: sold | H49: x | J49: x | L49: x | M49: x | O49: x
B50: 32 | C50: 1+1 | D50: 50+11 | E50: 50 | F50: 76500 | G50: SOLD | H50: x | L50: x | O50: x
B51: 4. Floor | H51: Balcony | I51: Terace | J51: Corner | K51: Mountain V. | L51: Pool/ Landscape | M51: North | N51: South | O51: East | P51: West
B53: No: | C53: MODEL | D53: Brüt Alan | E53: Brüt Alan | F53: Fiyat | G53: Durum
B55: 33 | C55: 2+1 Penthouse | D55: 78+54 | E55: 78 | F55: 120000 | I55: x | J55: x | N55: x | O55: x
B56: 34 | C56: 2+1 Penthouse | D56: 84+37.5+6 | E56: 84 | F56: 130000 | H56: x | I56: x | J56: x | N56: x | P56: x
B57: 35 | C57: 2+1 Penthouse | D57: 84+37.5+6 | E57: 84 | F57: 132000 | H57: x | I57: x | J57: x | L57: x | M57: x | P57: x
B58: 36 | C58: 2+1 Penthouse | D58: 78+54 | E58: 78 | F58: 125000 | I58: x | J58: x | L58: x | M58: x | O58: x

Sheet Daphne 4
B1: =TODAY() -> 2024-11-09
B2: Daphne 4 - 1+1,2+1 Pent
B3: G. Floor | H3: Balcony | I3: Terace | J3: Corner | K3: Mountain V. | L3: Pool/ Landscape | M3: North | N3: South | O3: East | P3: West
B5: No: | C5: MODEL | D5: Brüt Alan | E5: Brüt Alan | F5: Fiyat | G5: Durum
B7: 1 | C7: 1+1 | D7: 50+11 | E7: 50 | F7: 70500 | G7: DEPOSİT | H7: x | O7: x
B8: 2 | C8: 1+1 | D8: 58+11 | E8: 58 | F8: 74500 | G8: RES.30.10.B.F | H8: x | J8: x | N8: x | O8: x
B9: 3 | C9: 1+1 | D9: 58+6 | E9: 58 | F9: 73500 | H9: x | J9: x | N9: x | P9: x
B10: 4 | C10: 1+1 | D10: 54+6 | E10: 54 | F10: 72500 | H10: x | P10: x
B11: 5 | C11: 1+1 | D11: 54+6 | E11: 54 | F11: 72500 | H11: x | P11: x
B12: 6 | C12: 1+1 | D12: 58+6 | E12: 58 | F12: 73500 | H12: x | J12: x | M12: x | P12: x
B13: 7 | C13: 1+1 | D13: 58+11 | E13: 58 | F13: 74500 | G13: RES.06.11.T.T | H13: x | J13: x | M13: x | O13: x
B14: 8 | C14: 1+1 | D14: 50+11 | E14: 50 | F14: 70500 | G14: RES.06.11.T.T | H14: x | O14: x
B15: 1. Floor | H15: Balcony | I15: Terace | J15: Corner | K15: Mountain V. | L15: Pool/ Landscape | M15: North | N15: South | O15: East | P15: West
B17: No: | C17: MODEL | D17: Brüt Alan | E17: Brüt Alan | F17: Fiyat | G17: Durum
B19: 9 | C19: 1+1 | D19: 50+11 | E19: 50 | F19: 71500 | G19: RES.23.10.L.G | H19: x | O19: x
B20: 10 | C20: 1+1 | D20: 58+11 | E20: 58 | F20: 75500 | G20: Sold | H20: x | J20: x | N20: x | O20: x
B21: 11 | C21: 1+1 | D21: 58+6 | E21: 58 | F21: 74500 | H21: x | J21: x | N21: x | P21: x
B22: 12 | C22: 1+1 | D22: 54+6 | E22: 54 | F22: 73500 | H22: x | P22: x
B23: 13 | C23: 1+1 | D23: 54+6 | E23: 54 | F23: 73500 | H23: x | P23: x
B24: 14 | C24: 1+1 | D24: 58+6 | E24: 58 | F24: 74500 | H24: x | J24: x | M24: x | P24: x
B25: 15 | C25: 1+1 | D25: 58+11 | E25: 58 | F25: 75500 | G25: RES.07.11.T.T | H25: x | J25: x | L25: x | M25: x | O25: x
B26: 16 | C26: 1+1 | D26: 50+11 | E26: 50 | F26: 71500 | H26: x | L26: x | O26: x
B27: 2. Floor | H27: Balcony | I27: Terace | J27: Corner | K27: Mountain V. | L27: Pool/ Landscape | M27: North | N27: South | O27: East | P27: West
B29: No: | C29: MODEL | D29: Brüt Alan | E29: Brüt Alan | F29: Fiyat | G29: Durum
B31: 17 | C31: 1+1 | D31: 50+11 | E31: 50 | F31: 72500 | H31: x | O31: x
B32: 18 | C32: 1+1 | D32: 58+11 | E32: 58 | F32: 76500 | H32: x | J32: x | N32: x | O32: x
B33: 19 | C33: 1+1 | D33: 58+6 | E33: 58 | F33: 75500 | H33: x | J33: x | N33: x | P33: x
B34: 20 | C34: 1+1 | D34: 54+6 | E34: 54 | F34: 74500 | H34: x | P34: x
B35: 21 | C35: 1+1 | D35: 54+6 | E35: 54 | F35: 74500 | H35: x | P35: x
B36: 22 | C36: 1+1 | D36: 58+6 | E36: 58 | F36: 75500 | H36: x | J36: x | M36: x | P36: x
B37: 23 | C37: 1+1 | D37: 58+11 | E37: 58 | F37: 76500 | G37: RES.31.10.İ.E | H37: x | J37: x | L37: x | M37: x | O37: x
B38: 24 | C38: 1+1 | D38: 50+11 | E38: 50 | F38: 72500 | H38: x | L38: x | O38: x
B39: 3. Floor | H39: Balcony | I39: Terace | J39: Corner | K39: Mountain V. | L39: Pool/ Landscape | M39: North | N39: South | O39: East | P39: West
B41: No: | C41: MODEL | D41: Brüt Alan | E41: Brüt Alan | F41: Fiyat | G41: Durum
B43: 25 | C43: 1+1 | D43: 50+11 | E43: 50 | F43: 73500 | H43: x | O43: x
B44: 26 | C44: 1+1 | D44: 58+11 | E44: 58 | F44: 77500 | H44: x | J44: x | N44: x | O44: x
B45: 27 | C45: 1+1 | D45: 58+6 | E45: 58 | F45: 76500 | H45: x | J45: x | N45: x | P45: x
B46: 28 | C46: 1+1 | D46: 54+6 | E46: 54 | F46: 75500 | H46: x | P46: x
B47: 29 | C47: 1+1 | D47: 54+6 | E47: 54 | F47: 75500 | H47: x | P47: x
B48: 30 | C48: 1+1 | D48: 58+6 | E48: 58 | F48: 76500 | H48: x | J48: x | M48: x | P48: x
B49: 31 | C49: 1+1 | D49: 58+11 | E49: 58 | F49: 77500 | G49: RES.30.10.A.D | H49: x | J49: x | L49: x | M49: x | O49: x
B50: 32 | C50: 1+1 | D50: 50+11 | E50: 50 | F50: 73500 | H50: x | L50: x | O50: x
B51: 4. Floor | H51: Balcony | I51: Terace | J51: Corner | K51: Mountain V. | L51: Pool/ Landscape | M51: North | N51: South | O51: East | P51: West
B53: No: | C53: MODEL | D53: Brüt Alan | E53: Brüt Alan | F53: Fiyat | G53: Durum
B55: 33 | C55: 2+1 Penthouse | D55: 78+54 | E55: 78 | F55: 120000 | I55: x | J55: x | N55: x | O55: x
B56: 34 | C56: 2+1 Penthouse | D56: 84+37.5+6 | E56: 84 | F56: 130000 | H56: x | I56: x | J56: x | N56: x | P56: x
B57: 35 | C57: 2+1 Penthouse | D57: 84+37.5+6 | E57: 84 | F57: 132000 | H57: x | I57: x | J57: x | L57: x | M57: x | P57: x
B58: 36 | C58: 2+1 Penthouse | D58: 78+54 | E58: 78 | F58: 125000 | I58: x | J58: x | L58: x | M58: x | O58: x

Sheet Lavender 5
B1: =TODAY() -> 2024-11-09
B2: Lavender 5 - 2+1,3+1,3+1 Pent
B3: G. Floor | H3: Balcony | I3: Terace | J3: Corner | K3: Mountain V. | L3: Pool/ Landscape | M3: North | N3: South | O3: East | P3: West
B5: No: | C5: MODEL | D5: Brüt Alan | E5: Brüt Alan | F5: Fiyat | G5: Durum
B7: 1 | C7: 2+1 | D7: 58+6 | E7: 58 | G7: SOLD | H7: x | J7: x | L7: x | N7: x | P7: x
B8: 2 | C8: 3+1 | D8: 104+6 | E8: 104 | F8: 115000 | G8: DEPOSİT | H8: x | J8: x | M8: x | P8: x
B9: 3 | C9: 3+1 | D9: 104+6 | E9: 104 | F9: 115000 | G9: DEPOSİT | H9: x | J9: x | M9: x | O9: x
B10: 4 | C10: 2+1 | D10: 58+6 | E10: 58 | G10: SOLD | H10: x | J10: x | L10: x | N10: x | O10: x
B11: 1. Floor | H11: Balcony | I11: Terace | J11: Corner | K11: Mountain V. | L11: Pool/ Landscape | M11: North | N11: South | O11: East | P11: West
B13: No: | C13: MODEL | D13: Brüt Alan | E13: Brüt Alan | F13: Fiyat | G13: Durum
B15: 5 | C15: 2+1 | D15: 58+6 | E15: 58 | G15: SOLD | H15: x | J15: x | L15: x | N15: x | P15: x
B16: 6 | C16: 3+1 | D16: 104+6 | E16: 104 | F16: =F8+1000 -> 116000 | H16: x | J16: x | M16: x | P16: x
B17: 7 | C17: 3+1 | D17: 104+6 | E17: 104 | F17: 116000 | H17: x | J17: x | M17: x | O17: x
B18: 8 | C18: 2+1 | D18: 58+6 | E18: 58 | G18: DEPOSİT | H18: x | J18: x | L18: x | N18: x | O18: x
B19: 2. Floor | H19: Balcony | I19: Terace | J19: Corner | K19: Mountain V. | L19: Pool/ Landscape | M19: North | N19: South | O19: East | P19: West
B21: No: | C21: MODEL | D21: Brüt Alan | E21: Brüt Alan | F21: Fiyat | G21: Durum
B23: 9 | C23: 2+1 | D23: 58+6 | E23: 58 | G23: SOLD | H23: x | J23: x | L23: x | N23: x | P23: x
B24: 10 | C24: 3+1 | D24: 104+6 | E24: 104 | F24: =F16+1000 -> 117000 | H24: x | J24: x | M24: x | P24: x
B25: 11 | C25: 3+1 | D25: 104+6 | E25: 104 | F25: 117000 | H25: x | J25: x | M25: x | O25: x
B26: 12 | C26: 2+1 | D26: 58+6 | E26: 58 | F26: 82500 | G26: DEPOSİT | H26: x | J26: x | L26: x | N26: x | O26: x
B27: 3. Floor | H27: Balcony | I27: Terace | J27: Corner | K27: Mountain V. | L27: Pool/ Landscape | M27: North | N27: South | O27: East | P27: West
B29: No: | C29: MODEL | D29: Brüt Alan | E29: Brüt Alan | F29: Fiyat | G29: Durum
B31: 13 | C31: 2+1 | D31: 58+6 | E31: 58 | G31: SOLD | H31: x | J31: x | L31: x | N31: x | P31: x
B32: 14 | C32: 3+1 | D32: 104+6 | E32: 104 | F32: =F24+1000 -> 118000 | G32: SOLD | H32: x | J32: x | M32: x | P32: x
B33: 15 | C33: 3+1 | D33: 104+6 | E33: 104 | F33: 118000 | H33: x | J33: x | M33: x | O33: x
B34: 16 | C34: 2+1 | D34: 58+6 | E34: 58 | G34: SOLD | H34: x | J34: x | L34: x | N34: x | O34: x
B35: 4. Floor | H35: Balcony | I35: Terace | J35: Corner | K35: Mountain V. | L35: Pool/ Landscape | M35: North | N35: South | O35: East | P35: West
B37: No: | C37: MODEL | D37: Brüt Alan | E37: Brüt Alan | F37: Fiyat | G37: Durum
B39: 17 | C39: 2+1 | D39: 58+6 | E39: 58 | G39: SOLD | H39: x | J39: x | L39: x | N39: x | P39: x
B40: 18 | C40: 3+1 | D40: 104+6 | E40: 104 | F40: =F32+1000 -> 119000 | G40: DEPOSİT | H40: x | J40: x | M40: x | P40: x
B41: 19 | C41: 3+1 | D41: 104+6 | E41: 104 | F41: 119000 | H41: x | J41: x | M41: x | O41: x
B42: 20 | C42: 2+1 | D42: 58+6 | E42: 58 | F42: 84500 | G42: DEPOSİT | H42: x | J42: x | L42: x | N42: x | O42: x
B43: 5. Floor | H43: Balcony | I43: Terace | J43: Corner | K43: Mountain V. | L43: Pool/ Landscape | M43: North | N43: South | O43: East | P43: West
B45: No: | C45: MODEL | D45: Brüt Alan | E45: Brüt Alan | F45: Fiyat | G45: Durum
B47: 21 | C47: 2+1 Penthouse | D47: 93+61+29 | E47: 93 | F47: =E47*2000 -> 186000 | G47: SOLD | H47: x | I47: x | J47: x | K47: x | L47: x | M47: x | N47: x | P47: x
B48: 22 | C48: 2+1 Penthouse | D48: 93+61+29 | E48: 93 | F48: 137000 | H48: x | I48: x | J48: x | K48: x | L48: x | M48: x | N48: x | O48: x

Sheet Lavender 6
B1: =TODAY() -> 2024-11-09
B2: Lavender 6 - 2+1,3+1,3+1 Pent ]
B3: G. Floor | H3: Balcony | I3: Terace | J3: Corner | K3: Mountain V. | L3: Pool/ Landscape | M3: North | N3: South | O3: East | P3: West
B5: No: | C5: MODEL | D5: Brüt Alan | E5: Brüt Alan | F5: Fiyat | G5: Durum
B7: 1 | C7: 2+1 | D7: 58+6 | E7: 58 | G7: SOLD | H7: x | J7: x | L7: x | N7: x | P7: x
B8: 2 | C8: 3+1 | D8: 104+6 | E8: 104 | F8: 115000 | H8: x | J8: x | M8: x | P8: x
B9: 3 | C9: 3+1 | D9: 104+6 | E9: 104 | F9: 115000 | H9: x | J9: x | M9: x | O9: x
B10: 4 | C10: 2+1 | D10: 58+6 | E10: 58 | G10: SOLD | H10: x | J10: x | L10: x | N10: x | O10: x
B11: 1. Floor | H11: Balcony | I11: Terace | J11: Corner | K11: Mountain V. | L11: Pool/ Landscape | M11: North | N11: South | O11: East | P11: West
B13: No: | C13: MODEL | D13: Brüt Alan | E13: Brüt Alan | F13: Fiyat | G13: Durum
B15: 5 | C15: 2+1 | D15: 58+6 | E15: 58 | F15: 81500 | G15: DEPOSİT | H15: x | J15: x | L15: x | N15: x | P15: x
B16: 6 | C16: 3+1 | D16: 104+6 | E16: 104 | F16: =F8+1000 -> 116000 | H16: x | J16: x | M16: x | P16: x
B17: 7 | C17: 3+1 | D17: 104+6 | E17: 104 | F17: 116000 | H17: x | J17: x | M17: x | O17: x
B18: 8 | C18: 2+1 | D18: 58+6 | E18: 58 | G18: SOLD | H18: x | J18: x | L18: x | N18: x | O18: x
B19: 2. Floor | H19: Balcony | I19: Terace | J19: Corner | K19: Mountain V. | L19: Pool/ Landscape | M19: North | N19: South | O19: East | P19: West
B21: No: | C21: MODEL | D21: Brüt Alan | E21: Brüt Alan | F21: Fiyat | G21: Durum
B23: 9 | C23: 2+1 | D23: 58+6 | E23: 58 | F23: 82500 | G23: SOLD | H23: x | J23: x | L23: x | N23: x | P23: x
B24: 10 | C24: 3+1 | D24: 104+6 | E24: 104 | F24: =F16+1000 -> 117000 | H24: x | J24: x | M24: x | P24: x
B25: 11 | C25: 3+1 | D25: 104+6 | E25: 104 | G25: SOLD | H25: x | J25: x | M25: x | O25: x
B26: 12 | C26: 2+1 | D26: 58+6 | E26: 58 | G26: SOLD | H26: x | J26: x | L26: x | N26: x | O26: x
B27: 3. Floor | H27: Balcony | I27: Terace | J27: Corner | K27: Mountain V. | L27: Pool/ Landscape | M27: North | N27: South | O27: East | P27: West
B29: No: | C29: MODEL | D29: Brüt Alan | E29: Brüt Alan | F29: Fiyat | G29: Durum
B31: 13 | C31: 2+1 | D31: 58+6 | E31: 58 | G31: SOLD | H31: x | J31: x | L31: x | N31: x | P31: x
B32: 14 | C32: 3+1 | D32: 104+6 | E32: 104 | F32: =F24+1000 -> 118000 | G32: DEPOSİT | H32: x | J32: x | M32: x | P32: x
B33: 15 | C33: 3+1 | D33: 104+6 | E33: 104 | G33: SOLD | H33: x | J33: x | M33: x | O33: x
B34: 16 | C34: 2+1 | D34: 58+6 | E34: 58 | G34: SOLD | H34: x | J34: x | L34: x | N34: x | O34: x
B35: 4. Floor | H35: Balcony | I35: Terace | J35: Corner | K35: Mountain V. | L35: Pool/ Landscape | M35: North | N35: South | O35: East | P35: West
B37: No: | C37: MODEL | D37: Brüt Alan | E37: Brüt Alan | F37: Fiyat | G37: Durum
B39: 17 | C39: 2+1 | D39: 58+6 | E39: 58 | G39: SOLD | H39: x | J39: x | L39: x | N39: x | P39: x
B40: 18 | C40: 3+1 | D40: 104+6 | E40: 104 | F40: =F32+1000 -> 119000 | H40: x | J40: x | M40: x | P40: x
B41: 19 | C41: 3+1 | D41: 104+6 | E41: 104 | F41: 119000 | G41: deposit | H41: x | J41: x | M41: x | O41: x
B42: 20 | C42: 2+1 | D42: 58+6 | E42: 58 | F42: 84500 | G42: DEPOZİT | H42: x | J42: x | L42: x | N42: x | O42: x
B43: 5. Floor | H43: Balcony | I43: Terace | J43: Corner | K43: Mountain V. | L43: Pool/ Landscape | M43: North | N43: South | O43: East | P43: West
B45: No: | C45: MODEL | D45: Brüt Alan | E45: Brüt Alan | F45: Fiyat | G45: Durum
B47: 21 | C47: 2+1 Penthouse | D47: 93+61+29 | E47: 93 | F47: 137000 | H47: x | I47: x | J47: x | K47: x | L47: x | M47: x | N47: x | P47: x
B48: 22 | C48: 2+1 Penthouse | D48: 93+61+29 | E48: 93 | F48: 137000 | H48: x | I48: x | J48: x | K48: x | L48: x | M48: x | N48: x | O48: x

Sheet Lavender 8
B1: =TODAY() -> 2024-11-09
B2: Lavender 8 - 2+1,3+1,3+1 Pent
B3: G. Floor | H3: Balcony | I3: Terace | J3: Corner | K3: Mountain V. | L3: Pool/ Landscape | M3: North | N3: South | O3: East | P3: West
B5: No: | C5: MODEL | D5: Brüt Alan | E5: Brüt Alan | F5: Fiyat | G5: Durum
B7: 1 | C7: 2+1 | D7: 58+6 | E7: 58 | G7: sold | H7: x | J7: x | M7: x | O7: x
B8: 2 | C8: 3+1 | D8: 104+6 | E8: 104 | F8: 110000 | G8: RES.23.09.D.G | H8: x | J8: x | N8: x | O8: x
B9: 3 | C9: 3+1 | D9: 104+6 | E9: 104 | F9: 110000 | H9: x | J9: x | N9: x | P9: x
B10: 4 | C10: 2+1 | D10: 58+6 | E10: 58 | G10: SOLD | H10: x | J10: x | M10: x | P10: x
B11: 1. Floor | H11: Balcony | I11: Terace | J11: Corner | K11: Mountain V. | L11: Pool/ Landscape | M11: North | N11: South | O11: East | P11: West
B13: No: | C13: MODEL | D13: Brüt Alan | E13: Brüt Alan | F13: Fiyat | G13: Durum
B15: 5 | C15: 2+1 | D15: 58+6 | E15: 58 | F15: 76500 | G15: SOLD | H15: x | J15: x | L15: x | M15: x | O15: x
B16: 6 | C16: 3+1 | D16: 104+6 | E16: 104 | F16: =F8+1000 -> 111000 | G16: RES.24.09.SH.K | H16: x | J16: x | N16: x | O16: x
B17: 7 | C17: 3+1 | D17: 104+6 | E17: 104 | F17: 111000 | H17: x | J17: x | N17: x | P17: x
B18: 8 | C18: 2+1 | D18: 58+6 | E18: 58 | G18: SOLD | H18: x | J18: x | M18: x | P18: x
B19: 2. Floor | H19: Balcony | I19: Terace | J19: Corner | K19: Mountain V. | L19: Pool/ Landscape | M19: North | N19: South | O19: East | P19: West
B21: No: | C21: MODEL | D21: Brüt Alan | E21: Brüt Alan | F21: Fiyat | G21: Durum
B23: 9 | C23: 2+1 | D23: 58+6 | E23: 58 | F23: 76500 | G23: DEPOSİT | H23: x | J23: x | L23: x | M23: x | O23: x
B24: 10 | C24: 3+1 | D24: 104+6 | E24: 104 | F24: =F16+1000 -> 112000 | H24: x | J24: x | N24: x | O24: x
B25: 11 | C25: 3+1 | D25: 104+6 | E25: 104 | F25: 112000 | H25: x | J25: x | N25: x | P25: x
B26: 12 | C26: 2+1 | D26: 58+6 | E26: 58 | G26: SOLD | H26: x | J26: x | M26: x | P26: x
B27: 3. Floor | H27: Balcony | I27: Terace | J27: Corner | K27: Mountain V. | L27: Pool/ Landscape | M27: North | N27: South | O27: East | P27: West
B29: No: | C29: MODEL | D29: Brüt Alan | E29: Brüt Alan | F29: Fiyat | G29: Durum
B31: 13 | C31: 2+1 | D31: 58+6 | E31: 58 | G31: DEPOSİT | H31: x | J31: x | L31: x | M31: x | O31: x
B32: 14 | C32: 3+1 | D32: 104+6 | E32: 104 | F32: =F24+1000 -> 113000 | H32: x | J32: x | N32: x | O32: x
B33: 15 | C33: 3+1 | D33: 104+6 | E33: 104 | F33: 113000 | G33: DEPOSİT | H33: x | J33: x | N33: x | P33: x
B34: 16 | C34: 2+1 | D34: 58+6 | E34: 58 | F34: 77500 | G34: DEPOSİT | H34: x | J34: x | M34: x | P34: x
B35: 4. Floor | H35: Balcony | I35: Terace | J35: Corner | K35: Mountain V. | L35: Pool/ Landscape | M35: North | N35: South | O35: East | P35: West
B37: No: | C37: MODEL | D37: Brüt Alan | E37: Brüt Alan | F37: Fiyat | G37: Durum
B39: 17 | C39: 2+1 | D39: 58+6 | E39: 58 | F39: 78500 | G39: SOLD | H39: x | J39: x | L39: x | M39: x | O39: x
B40: 18 | C40: 3+1 | D40: 104+6 | E40: 104 | F40: =F32+1000 -> 114000 | G40: SOLD | H40: x | J40: x | N40: x | O40: x
B41: 19 | C41: 3+1 | D41: 104+6 | E41: 104 | F41: 114000 | H41: x | J41: x | N41: x | P41: x | W41: -
B42: 20 | C42: 2+1 | D42: 58+6 | E42: 58 | F42: 78500 | G42: DEPOSİT | H42: x | J42: x | M42: x | P42: x
B43: 5. Floor | H43: Balcony | I43: Terace | J43: Corner | K43: Mountain V. | L43: Pool/ Landscape | M43: North | N43: South | O43: East | P43: West
B45: No: | C45: MODEL | D45: Brüt Alan | E45: Brüt Alan | F45: Fiyat | G45: Durum
B47: 21 | C47: 2+1 | D47: 58+6 | E47: 58 | F47: 79500 | G47: SOLD | H47: x | J47: x | L47: x | M47: x | O47: x
B48: 22 | C48: 3+1 | D48: 104+6 | E48: 104 | F48: =F40+1000 -> 115000 | H48: x | J48: x | N48: x | O48: x
B49: 23 | C49: 3+1 | D49: 104+6 | E49: 104 | F49: 115000 | G49: res.10.09.T.B | H49: x | J49: x | N49: x | P49: x
B50: 24 | C50: 2+1 | D50: 58+6 | E50: 58 | F50: 79500 | G50: SOLD | H50: x | J50: x | M50: x | P50: x
B51: 6. Floor | H51: Balcony | I51: Terace | J51: Corner | K51: Mountain V. | L51: Pool/ Landscape | M51: North | N51: South | O51: East | P51: West
B53: No: | C53: MODEL | D53: Brüt Alan | E53: Brüt Alan | F53: Fiyat | G53: Durum
B55: 25 | C55: 2+1 | D55: 58+6 | E55: 58 | G55: SOLD | H55: x | J55: x | L55: x | M55: x | O55: x
B56: 26 | C56: 3+1 | D56: 104+6 | E56: 104 | F56: =F48+1000 -> 116000 | H56: x | J56: x | N56: x | O56: x
B57: 27 | C57: 3+1 | D57: 104+6 | E57: 104 | F57: 116000 | H57: x | J57: x | N57: x | P57: x
B58: 28 | C58: 2+1 | D58: 58+6 | E58: 58 | G58: SOLD | H58: x | J58: x | M58: x | P58: x
B59: 7. Floor | H59: Balcony | I59: Terace | J59: Corner | K59: Mountain V. | L59: Pool/ Landscape | M59: North | N59: South | O59: East | P59: West
B61: No: | C61: MODEL | D61: Brüt Alan | E61: Brüt Alan | F61: Fiyat | G61: Durum
B63: 29 | C63: 2+1 Penthouse | D63: 93+61+29 | E63: 93 | F63: 137000 | H63: x | I63: x | J63: x | K63: x | L63: x | M63: x | N63: x | O63: x
B64: 30 | C64: 2+1 Penthouse | D64: 93+61+29 | E64: 93 | F64: 135000 | H64: x | I64: x | J64: x | K64: x | M64: x | N64: x | P64: x

Sheet Rosemary 1
A1: P | B1: =TODAY() -> 2024-11-09
B2: Rosemary 1 - 3+1,2+1 Pent
B3: G. Floor | H3: Balcony | I3: Terace | J3: Corner | K3: Mountain V. | L3: Pool/ Landscape | M3: North | N3: South | O3: East | P3: West
B5: No: | C5: MODEL | D5: Brüt Alan | E5: Brüt Alan | F5: Fiyat | G5: Durum
B7: 1 | C7: 3+1 | D7: 75+5 | E7: 75 | F7: 85000 | G7: DEPOSİT | H7: x | J7: x | N7: x | P7: x
B8: 2 | C8: 3+1 | D8: 66+5.5 | E8: 66 | F8: 81000 | H8: x | J8: x | M8: x | P8: x
B9: 3 | C9: 3+1 | D9: 66+5.5 | E9: 66 | F9: 81000 | G9: RES.13.09.H.A | H9: x | J9: x | M9: x | O9: x
B10: 4 | C10: 3+1 | D10: 75+5 | E10: 75 | G10: SOLD | H10: x | J10: x | N10: x | O10: x
H11: Balcony | I11: Terace | J11: Corner | K11: Mountain V. | L11: Pool/ Landscape | M11: North | N11: South | O11: East | P11: West
B13: No: | C13: MODEL | D13: Brüt Alan | E13: Brüt Alan | F13: Fiyat | G13: Durum
B15: 5 | C15: 3+1 | D15: 75+5 | E15: 75 | F15: 86000 | G15: DEPOSIT | H15: x | J15: x | N15: x | P15: x
B16: 6 | C16: 3+1 | D16: 66+5.5 | E16: 66 | F16: 82000 | G16: DEPOSIT | H16: x | J16: x | M16: x | P16: x
B17: 7 | C17: 3+1 | D17: 66+5.5 | E17: 66 | F17: 82000 | G17: DEPOSİT | H17: x | J17: x | M17: x | O17: x
B18: 8 | C18: 3+1 | D18: 75+5 | E18: 75 | F18: 86000 | G18: RES.23.10.M.R | H18: x | J18: x | N18: x | O18: x
B19: 2. Floor | H19: Balcony | I19: Terace | J19: Corner | K19: Mountain V. | L19: Pool/ Landscape | M19: North | N19: South | O19: East | P19: West
B21: No: | C21: MODEL | D21: Brüt Alan | E21: Brüt Alan | F21: Fiyat | G21: Durum
B23: 9 | C23: 3+1 | D23: 75+5 | E23: 75 | F23: 87000 | G23: Iş karşılığı sarılacak | H23: x | J23: x | N23: x | P23: x
B24: 10 | C24: 3+1 | D24: 66+5.5 | E24: 66 | F24: 83000 | G24: RES27.09.ö.ö | H24: x | J24: x | M24: x | P24: x
B25: 11 | C25: 3+1 | D25: 66+5.5 | E25: 66 | F25: 83000 | G25: DEPOSIT | H25: x | J25: x | M25: x | O25: x
B26: 12 | C26: 3+1 | D26: 75+5 | E26: 75 | F26: 87000 | G26: Iş karşılığı sarılacak | H26: x | J26: x | N26: x | O26: x
B27: 3. Floor | H27: Balcony | I27: Terace | J27: Corner | K27: Mountain V. | L27: Pool/ Landscape | M27: North | N27: South | O27: East | P27: West
B29: No: | C29: MODEL | D29: Brüt Alan | E29: Brüt Alan | F29: Fiyat | G29: Durum
B31: 13 | C31: 3+1 | D31: 75+5 | E31: 75 | F31: 88000 | G31: Iş karşılığı sarılacak | H31: x | J31: x | N31: x | P31: x
B32: 14 | C32: 3+1 | D32: 66+5.5 | E32: 66 | F32: 84000 | G32: RES.16.10.L.G | H32: x | J32: x | M32: x | P32: x
B33: 15 | C33: 3+1 | D33: 66+5.5 | E33: 66 | F33: 84000 | G33: DEPOSİT | H33: x | J33: x | M33: x | O33: x
B34: 16 | C34: 3+1 | D34: 75+5 | E34: 75 | F34: 88000 | G34: Iş karşılığı sarılacak | H34: x | J34: x | N34: x | O34: x
B35: 4. Floor | H35: Balcony | I35: Terace | J35: Corner | K35: Mountain V. | L35: Pool/ Landscape | M35: North | N35: South | O35: East | P35: West
B37: No: | C37: MODEL | D37: Brüt Alan | E37: Brüt Alan | F37: Fiyat | G37: Durum
B39: 17 | C39: 3+1 | D39: 75+5 | E39: 75 | F39: 89000 | G39: SOLD | H39: x | J39: x | N39: x | P39: x
B40: 18 | C40: 3+1 | D40: 66+5.5 | E40: 66 | F40: 85000 | H40: x | J40: x | M40: x | P40: x
B41: 19 | C41: 3+1 | D41: 66+5.5 | E41: 66 | F41: 85000 | H41: x | J41: x | M41: x | O41: x
B42: 20 | C42: 3+1 | D42: 75+5 | E42: 75 | F42: 89000 | H42: x | J42: x | N42: x | O42: x
B43: 5. Floor | H43: Balcony | I43: Terace | J43: Corner | K43: Mountain V. | L43: Pool/ Landscape | M43: North | N43: South | O43: East | P43: West
B45: No: | C45: MODEL | D45: Brüt Alan | E45: Brüt Alan | F45: Fiyat | G45: Durum
B47: 21 | C47: 2+1 Pent | D47: 81+41+50 | E47: 81 | F47: 127000 | I47: x | J47: x | M47: x | N47: x | P47: x
B48: 22 | C48: 2+1 Pent | D48: 81+41+50 | E48: 81 | F48: 127000 | G48: DEPOSİT | I48: x | J48: x | M48: x | N48: x | O48: x

Sheet Rosemary 2
A1: P | B1: =TODAY() -> 2024-11-09
B2: Rosemary 2 - 3+1,2+1 Pent
B3: G. Floor | H3: Balcony | I3: Terace | J3: Corner | K3: Mountain V. | L3: Pool/ Landscape | M3: North | N3: South | O3: East | P3: West
B5: No: | C5: MODEL | D5: Brüt Alan | E5: Brüt Alan | F5: Fiyat | G5: Durum
B7: 1 | C7: 3+1 | D7: 75+5 | E7: 75 | F7: 85000 | G7: deposit | H7: x | J7: x | N7: x | P7: x
B8: 2 | C8: 3+1 | D8: 66+5.5 | E8: 66 | F8: 81000 | G8: deposit | H8: x | J8: x | M8: x | P8: x
B9: 3 | C9: 3+1 | D9: 66+5.5 | E9: 66 | F9: 81000 | G9: SOLD | H9: x | J9: x | M9: x | O9: x
B10: 4 | C10: 3+1 | D10: 75+5 | E10: 75 | F10: 85000 | G10: SOLD | H10: x | J10: x | N10: x | O10: x
B11: 1. Floor | H11: Balcony | I11: Terace | J11: Corner | K11: Mountain V. | L11: Pool/ Landscape | M11: North | N11: South | O11: East | P11: West
B13: No: | C13: MODEL | D13: Brüt Alan | E13: Brüt Alan | F13: Fiyat | G13: Durum
B15: 5 | C15: 3+1 | D15: 75+5 | E15: 75 | F15: 86000 | G15: SOLD | H15: x | J15: x | N15: x | P15: x
B16: 6 | C16: 3+1 | D16: 66+5.5 | E16: 66 | F16: 82000 | G16: SOLD | H16: x | J16: x | M16: x | P16: x
B17: 7 | C17: 3+1 | D17: 66+5.5 | E17: 66 | G17: SOLD | H17: x | J17: x | M17: x | O17: x
B18: 8 | C18: 3+1 | D18: 75+5 | E18: 75 | F18: 86000 | G18: SOLD | H18: x | J18: x | N18: x | O18: x
B19: 2. Floor | H19: Balcony | I19: Terace | J19: Corner | K19: Mountain V. | L19: Pool/ Landscape | M19: North | N19: South | O19: East | P19: West
B21: No: | C21: MODEL | D21: Brüt Alan | E21: Brüt Alan | F21: Fiyat | G21: Durum
B23: 9 | C23: 3+1 | D23: 75+5 | E23: 75 | F23: 87000 | G23: SOLD | H23: x | J23: x | N23: x | P23: x
B24: 10 | C24: 3+1 | D24: 66+5.5 | E24: 66 | F24: 83000 | G24: DEPOSİT | H24: x | J24: x | L24: x | M24: x | P24: x
B25: 11 | C25: 3+1 | D25: 66+5.5 | E25: 66 | F25: 83000 | G25: RES.18.10.A.D | H25: x | J25: x | L25: x | M25: x | O25: x
B26: 12 | C26: 3+1 | D26: 75+5 | E26: 75 | F26: 87000 | G26: SOLD | H26: x | J26: x | N26: x | O26: x
B27: 3. Floor | H27: Balcony | I27: Terace | J27: Corner | K27: Mountain V. | L27: Pool/ Landscape | M27: North | N27: South | O27: East | P27: West
B29: No: | C29: MODEL | D29: Brüt Alan | E29: Brüt Alan | F29: Fiyat | G29: Durum
B31: 13 | C31: 3+1 | D31: 75+5 | E31: 75 | F31: 88000 | G31: RES.15.10.A.D | H31: x | J31: x | N31: x | P31: x
B32: 14 | C32: 3+1 | D32: 66+5.5 | E32: 66 | F32: 84000 | G32: DEPOZIT | H32: x | J32: x | L32: x | M32: x | P32: x
B33: 15 | C33: 3+1 | D33: 66+5.5 | E33: 66 | F33: 84000 | H33: x | J33: x | L33: x | M33: x | O33: x
B34: 16 | C34: 3+1 | D34: 75+5 | E34: 75 | F34: 88000 | G34: SOLD | H34: x | J34: x | N34: x | O34: x
B35: 4. Floor | H35: Balcony | I35: Terace | J35: Corner | K35: Mountain V. | L35: Pool/ Landscape | M35: North | N35: South | O35: East | P35: West
B37: No: | C37: MODEL | D37: Brüt Alan | E37: Brüt Alan | F37: Fiyat | G37: Durum
B39: 17 | C39: 3+1 | D39: 75+5 | E39: 75 | F39: 89000 | H39: x | J39: x | N39: x | P39: x
B40: 18 | C40: 3+1 | D40: 66+5.5 | E40: 66 | G40: SOLD | H40: x | J40: x | L40: x | M40: x | P40: x
B41: 19 | C41: 3+1 | D41: 66+5.5 | E41: 66 | F41: 85000 | H41: x | J41: x | L41: x | M41: x | O41: x
B42: 20 | C42: 3+1 | D42: 75+5 | E42: 75 | F42: 89000 | H42: x | J42: x | N42: x | O42: x
B43: 5. Floor | H43: Balcony | I43: Terace | J43: Corner | K43: Mountain V. | L43: Pool/ Landscape | M43: North | N43: South | O43: East | P43: West
B45: No: | C45: MODEL | D45: Brüt Alan | E45: Brüt Alan | F45: Fiyat | G45: Durum
B47: 21 | C47: 2+1 Pent | D47: 81+41+50 | E47: 81 | F47: 127000 | I47: x | J47: x | L47: x | M47: x | N47: x | P47: x
B48: 22 | C48: 2+1 Pent | D48: 81+41+50 | E48: 81 | F48: 127000 | I48: x | J48: x | L48: x | M48: x | N48: x | O48: x

Sheet Rosemary 3
B1: =TODAY() -> 2024-11-09
B2: Rosemary 3 - 3+1,2+1 Pent
B3: G. Floor | H3: Balcony | I3: Terace | J3: Corner | K3: Mountain V. | L3: Pool/ Landscape | M3: North | N3: South | O3: East | P3: West
B5: No: | C5: MODEL | D5: Brüt Alan | E5: Brüt Alan | F5: Fiyat | G5: Durum
B7: 1 | C7: 3+1 | D7: 75+5 | E7: 75 | F7: 85000 | G7: SOLD | H7: x | J7: x | M7: x | O7: x
B8: 2 | C8: 3+1 | D8: 66+5.5 | E8: 66 | F8: 81000 | G8: res.16.09.A.K | H8: x | J8: x | N8: x | O8: x
B9: 3 | C9: 3+1 | D9: 66+5.5 | E9: 66 | F9: 81000 | G9: DEPOSİT | H9: x | J9: x | N9: x | P9: x
B10: 4 | C10: 3+1 | D10: 75+5 | E10: 75 | F10: 85000 | G10: DEPOSİT | H10: x | J10: x | M10: x | P10: x
B11: 1. Floor | H11: Balcony | I11: Terace | J11: Corner | K11: Mountain V. | L11: Pool/ Landscape | M11: North | N11: South | O11: East | P11: West
B13: No: | C13: MODEL | D13: Brüt Alan | E13: Brüt Alan | F13: Fiyat | G13: Durum
B15: 5 | C15: 3+1 | D15: 75+5 | E15: 75 | F15: 86000 | G15: SOLD | H15: x | J15: x | M15: x | O15: x
B16: 6 | C16: 3+1 | D16: 66+5.5 | E16: 66 | F16: 82000 | G16: RES.09.09.A.D | H16: x | J16: x | N16: x | O16: x
B17: 7 | C17: 3+1 | D17: 66+5.5 | E17: 66 | F17: 82000 | G17: RES.09.09.A.D | H17: x | J17: x | N17: x | P17: x
B18: 8 | C18: 3+1 | D18: 75+5 | E18: 75 | F18: 86000 | G18: DEPOSİT | H18: x | J18: x | M18: x | P18: x
B19: 2. Floor | H19: Balcony | I19: Terace | J19: Corner | K19: Mountain V. | L19: Pool/ Landscape | M19: North | N19: South | O19: East | P19: West
B21: No: | C21: MODEL | D21: Brüt Alan | E21: Brüt Alan | F21: Fiyat | G21: Durum
B23: 9 | C23: 3+1 | D23: 75+5 | E23: 75 | F23: 87000 | G23: SOLD | H23: x | J23: x | M23: x | O23: x
B24: 10 | C24: 3+1 | D24: 66+5.5 | E24: 66 | F24: 83000 | H24: x | J24: x | N24: x | O24: x
B25: 11 | C25: 3+1 | D25: 66+5.5 | E25: 66 | F25: 83000 | H25: x | J25: x | N25: x | P25: x
B26: 12 | C26: 3+1 | D26: 75+5 | E26: 75 | F26: 87000 | G26: RES.09.10.A.D | H26: x | J26: x | M26: x | P26: x
B27: 3. Floor | H27: Balcony | I27: Terace | J27: Corner | K27: Mountain V. | L27: Pool/ Landscape | M27: North | N27: South | O27: East | P27: West
B29: No: | C29: MODEL | D29: Brüt Alan | E29: Brüt Alan | F29: Fiyat | G29: Durum
B31: 13 | C31: 3+1 | D31: 75+5 | E31: 75 | F31: 88000 | G31: SOLD | H31: x | J31: x | M31: x | O31: x
B32: 14 | C32: 3+1 | D32: 66+5.5 | E32: 66 | F32: 84000 | H32: x | J32: x | N32: x | O32: x
B33: 15 | C33: 3+1 | D33: 66+5.5 | E33: 66 | F33: 84000 | H33: x | J33: x | N33: x | P33: x
B34: 16 | C34: 3+1 | D34: 75+5 | E34: 75 | F34: 88000 | G34: SOLD | H34: x | J34: x | M34: x | P34: x
B35: 4. Floor | H35: Balcony | I35: Terace | J35: Corner | K35: Mountain V. | L35: Pool/ Landscape | M35: North | N35: South | O35: East | P35: West
B37: No: | C37: MODEL | D37: Brüt Alan | E37: Brüt Alan | F37: Fiyat | G37: Durum
B39: 17 | C39: 3+1 | D39: 75+5 | E39: 75 | G39: SOLD | H39: x | J39: x | M39: x | O39: x
B40: 18 | C40: 3+1 | D40: 66+5.5 | E40: 66 | F40: 85000 | G40: SOLD | H40: x | J40: x | N40: x | O40: x
B41: 19 | C41: 3+1 | D41: 66+5.5 | E41: 66 | F41: 85000 | H41: x | J41: x | N41: x | P41: x
B42: 20 | C42: 3+1 | D42: 75+5 | E42: 75 | F42: 89000 | H42: x | J42: x | M42: x | P42: x
B43: 5. Floor | H43: Balcony | I43: Terace | J43: Corner | K43: Mountain V. | L43: Pool/ Landscape | M43: North | N43: South | O43: East | P43: West
B45: No: | C45: MODEL | D45: Brüt Alan | E45: Brüt Alan | F45: Fiyat | G45: Durum
B47: 21 | C47: 2+1 Pent | D47: 81+41+50 | E47: 81 | F47: 127000 | I47: x | J47: x | M47: x | N47: x | O47: x
B48: 22 | C48: 2+1 Pent | D48: 81+41+50 | E48: 81 | F48: 127000 | I48: x | J48: x | M48: x | N48: x | P48: x

Sheet Rosemary 4
B1: =TODAY() -> 2024-11-09
B2: Rosemary 4 - 3+1,2+1 Pent
B3: G. Floor | H3: Balcony | I3: Terace | J3: Corner | K3: Mountain V. | L3: Pool/ Landscape | M3: North | N3: South | O3: East | P3: West
B5: No: | C5: MODEL | D5: Brüt Alan | E5: Brüt Alan | F5: Fiyat | G5: Durum
B7: 1 | C7: 3+1 | D7: 75+5 | E7: 75 | F7: 85000 | G7: DEPOSİT | H7: x | J7: x | M7: x | O7: x
B8: 2 | C8: 3+1 | D8: 66+5.5 | E8: 66 | F8: 81000 | G8: RES.16.09.A.K | H8: x | J8: x | N8: x | O8: x
B9: 3 | C9: 3+1 | D9: 66+5.5 | E9: 66 | F9: 81000 | G9: RES.09.11.M.R | H9: x | J9: x | N9: x | P9: x
B10: 4 | C10: 3+1 | D10: 75+5 | E10: 75 | F10: 85000 | G10: DEPOSİTE | H10: x | J10: x | M10: x | P10: x
B11: 1. Floor | H11: Balcony | I11: Terace | J11: Corner | K11: Mountain V. | L11: Pool/ Landscape | M11: North | N11: South | O11: East | P11: West
B13: No: | C13: MODEL | D13: Brüt Alan | E13: Brüt Alan | F13: Fiyat | G13: Durum
B15: 5 | C15: 3+1 | D15: 75+5 | E15: 75 | G15: SOLD | H15: x | J15: x | M15: x | O15: x
B16: 6 | C16: 3+1 | D16: 66+5.5 | E16: 66 | F16: 82000 | G16: DEPOSİT | H16: x | J16: x | N16: x | O16: x
B17: 7 | C17: 3+1 | D17: 66+5.5 | E17: 66 | F17: 82000 | H17: x | J17: x | N17: x | P17: x
B18: 8 | C18: 3+1 | D18: 75+5 | E18: 75 | G18: SOLD | H18: x | J18: x | M18: x | P18: x
B19: 2. Floor | H19: Balcony | I19: Terace | J19: Corner | K19: Mountain V. | L19: Pool/ Landscape | M19: North | N19: South | O19: East | P19: West
B21: No: | C21: MODEL | D21: Brüt Alan | E21: Brüt Alan | F21: Fiyat | G21: Durum
B23: 9 | C23: 3+1 | D23: 75+5 | E23: 75 | F23: 87000 | H23: x | J23: x | M23: x | O23: x
B24: 10 | C24: 3+1 | D24: 66+5.5 | E24: 66 | F24: 83000 | H24: x | J24: x | N24: x | O24: x
B25: 11 | C25: 3+1 | D25: 66+5.5 | E25: 66 | F25: 83000 | G25: DEPOSİT | H25: x | J25: x | N25: x | P25: x
B26: 12 | C26: 3+1 | D26: 75+5 | E26: 75 | F26: 87000 | G26: RES.26.09.Z.D | H26: x | J26: x | M26: x | P26: x
B27: 3. Floor | H27: Balcony | I27: Terace | J27: Corner | K27: Mountain V. | L27: Pool/ Landscape | M27: North | N27: South | O27: East | P27: West
B29: No: | C29: MODEL | D29: Brüt Alan | E29: Brüt Alan | F29: Fiyat | G29: Durum
B31: 13 | C31: 3+1 | D31: 75+5 | E31: 75 | F31: 88000 | G31: SOLD | H31: x | J31: x | M31: x | O31: x
B32: 14 | C32: 3+1 | D32: 66+5.5 | E32: 66 | F32: 84000 | H32: x | J32: x | N32: x | O32: x
B33: 15 | C33: 3+1 | D33: 66+5.5 | E33: 66 | F33: 84000 | G33: DEPOSIT | H33: x | J33: x | N33: x | P33: x
B34: 16 | C34: 3+1 | D34: 75+5 | E34: 75 | F34: 88000 | G34: DEPOSIT | H34: x | J34: x | M34: x | P34: x
B35: 4. Floor | H35: Balcony | I35: Terace | J35: Corner | K35: Mountain V. | L35: Pool/ Landscape | M35: North | N35: South | O35: East | P35: West
B37: No: | C37: MODEL | D37: Brüt Alan | E37: Brüt Alan | F37: Fiyat | G37: Durum
B39: 17 | C39: 3+1 | D39: 75+5 | E39: 75 | G39: SOLD | H39: x | J39: x | M39: x | O39: x
B40: 18 | C40: 3+1 | D40: 66+5.5 | E40: 66 | F40: 85000 | H40: x | J40: x | N40: x | O40: x
B41: 19 | C41: 3+1 | D41: 66+5.5 | E41: 66 | F41: 85000 | G41: RES.06.11.İ.E | H41: x | J41: x | N41: x | P41: x
B42: 20 | C42: 3+1 | D42: 75+5 | E42: 75 | F42: 89000 | H42: x | J42: x | M42: x | P42: x
B43: 5. Floor | H43: Balcony | I43: Terace | J43: Corner | K43: Mountain V. | L43: Pool/ Landscape | M43: North | N43: South | O43: East | P43: West
B45: No: | C45: MODEL | D45: Brüt Alan | E45: Brüt Alan | F45: Fiyat | G45: Durum
B47: 21 | C47: 2+1 Pent | D47: 81+41+50 | E47: 81 | F47: 127000 | I47: x | J47: x | M47: x | N47: x | O47: x
B48: 22 | C48: 2+1 Pent | D48: 81+41+50 | E48: 81 | F48: 127000 | I48: x | J48: x | M48: x | N48: x | P48: x
